Cogmind - Beta 12 @@@ ROGUE MODE // 2023.11.19 @ 15:55:55 // Winter2019/RPGLIKE Player: Rentaro Result: Self-destructed Performance ------------- Evolutions (2) 1000 Regions Visited (3) 600 Robots Destroyed (145) 725 Value Destroyed (2488) 2488 Prototype IDs (9) 180 Alien Tech Used (0) 0 Bonus (585) 585 TOTAL SCORE: 5578 Bonus ------- High Alert Combat Kills 585 Cogmind --------- Core Integrity 884/950 Matter 300/300 Energy 300/300 System Corruption 0% Temperature Cool (0) Movement Flying (34) Location -8/Materials Parts ------- > --- POWER (2) -------- Light Ion Engine Deuterium Engine > --- PROPULSION (3) --- Improved Flight Unit Improved Flight Unit Improved Flight Unit > --- UTILITY (5) ------ Heat Sink Improved Heat Sink Sensor Array Signal Interpreter Medium Armor Plating > --- WEAPON (2) ------- Advanced Beam Rifle Advanced Beam Rifle (fused) > --- INVENTORY (2) ---- Advanced Weight Redist. System Peak State ------------ > --- POWER ------------ Light Ion Engine Deuterium Engine > --- PROPULSION ------- Improved Flight Unit Improved Flight Unit Improved Flight Unit > --- UTILITY ---------- Improved Heat Sink Advanced Weight Redist. System Sensor Array Signal Interpreter Medium Armor Plating > --- WEAPON ----------- Advanced Beam Rifle Advanced Beam Rifle > --- INVENTORY -------- Heat Sink Advanced Weight Redist. System [Rating: 31] Favorites ----------- Power Light Ion Engine Engine Light Ion Engine Propulsion Aluminum Leg Leg Aluminum Leg Flight Unit Improved Flight Unit Utility Sensor Array Device Sensor Array Processor Signal Interpreter Protection Light Armor Plating Weapon Advanced Beam Rifle Energy Gun Advanced Beam Rifle Energy Cannon Advanced Beam Cannon Ballistic Gun Light Assault Rifle Special Weapon Welding Torch Build | -11 -10 -9 -8 ------- Run | Jun Mat Mat Mat Slots Evolved 8 | 4 . 4 . Power 1 | 1 . . . Propulsion 2 | 1 . 1 . Utility 4 | 1 . 3 . Weapon 1 | 1 . . . Parts Attached 53 | 5 21 23 4 Power 8 | 1 4 3 . Engine 8 | 1 4 3 . Core . | . . . . Reactor . | . . . . Propulsion 13 | 2 7 4 . Treads . | . . . . Leg 9 | 2 7 . . Wheel . | . . . . Hover . | . . . . Flight 4 | . . 4 . Utility 18 | . 2 12 4 Device 11 | . 2 6 3 Storage . | . . . . Processor 1 | . . 1 . Hackware . | . . . . Protection 6 | . . 5 1 Artifact . | . . . . Weapon 14 | 2 8 4 . Energy Gun 5 | . 2 3 . Energy Cannon 1 | . . 1 . Ballistic Gun 7 | 2 5 . . Ballistic Cannon . | . . . . Launcher . | . . . . Special Weapon 1 | . 1 . . Impact Weapon . | . . . . Slashing Weapon . | . . . . Piercing Weapon . | . . . . Special Melee Weapon . | . . . . Unidentified Prototypes 2 | . . 2 . Parts Lost . | . . . . Power . | . . . . Propulsion . | . . . . Utility . | . . . . Weapon . | . . . . Highest Loss Streak . | . . . . To Critical Strikes . | . . . . Average Slot Usage (%) 98 | . 97 99 100 Engine 20 | . 23 18 16 Leg 14 | . 24 5 . Flight 10 | . . 18 25 Device 23 | . 24 23 25 Processor 3 | . . 5 8 Protection 4 | . . 8 8 Energy Gun 14 | . 11 17 16 Ballistic Gun 5 | . 12 . . Naked Turns 3 | . 3 . . Heaviest Build 30 | 7 12 30 26 Greatest Support 39 | 20 20 30 39 Greatest Overweight (x) 5 | . 2 5 . Average Overweight (x) . | . . . . Largest Inventory Capacity 2 | . 1 2 2 Average Capacity 1 | . . 1 2 Most Carried 2 | . 1 2 2 Average Carried . | . . . 1 Final Capacity 2 | . 1 2 2 Final Carried 2 | . 1 2 1 Class Distribution -------------------- 60% | Scavenger-Mutant 13% | Mutant 10% | Hacker-Scout 10% | Skirmisher 4% | Scavenger-Scout Dominant Class ---------------- Scavenger-Mutant | -10/Materials Scavenger-Mutant | -9/Materials Scavenger-Mutant | -8/Materials Resources | -11 -10 -9 -8 ----------- Run | Jun Mat Mat Mat Matter Collected 1123 | 268 466 349 40 Remotely . | . . . . Salvage Created 4930 | 105 1733 3010 82 Parts 334 | 9 118 203 4 Haulers Intercepted 8 | . 2 6 . Recyclers Shooed 10 | . 5 5 . Parts Field Recycled . | . . . . Retrieved Matter . | . . . . Parts Self-Destructed . | . . . . Prevented . | . . . . Kills | -11 -10 -9 -8 ------- Run | Jun Mat Mat Mat Combat Hostiles Destroyed 72 | . 16 55 1 Guns 72 | . 16 55 1 Classes Destroyed 11 | 2 6 3 . Worker 26 | . 11 15 . Builder 16 | . 9 7 . Tunneler 4 | 2 1 1 . Hauler 8 | . 2 6 . Recycler 17 | 1 12 4 . Operator 3 | . . 3 . Watcher 8 | . 3 5 . Swarmer 14 | . 6 8 . Grunt 45 | . 10 35 . Protector 2 | . . 2 . Sentry 11 | . . 10 1 Best Kill Streak 10 | 2 10 10 1 Combat Bots Only 8 | . 8 7 1 Max Kills in Single Turn 2 | 1 1 2 1 Gunslinging 1 | . . 1 . Exploded . | . . . . Melee . | . . . . Uniques/NPCs Destroyed . | . . . . Combat | -11 -10 -9 -8 -------- Run | Jun Mat Mat Mat Damage Taken 1607 | . 713 894 . Core 1185 | . 578 607 . Absorbed by Shields . | . . . . Redirected to Core 867 | . 417 450 . Core Remaining (%) 83 | 100 58 93 . Volleys Fired 408 | 9 213 185 1 Largest 2 | 2 2 2 2 Hottest 124 | 40 60 124 122 Shots Fired 769 | 18 379 370 2 Gun 755 | 18 372 363 2 Cannon 7 | . . 7 . Launcher . | . . . . Special 7 | . 7 . . Kinetic 252 | 18 218 16 . Thermal 517 | . 161 354 2 Explosive . | . . . . Electromagnetic . | . . . . Robot Hit Streak 34 | 6 20 34 11 Robot Miss Streak 6 | 1 6 4 . Penetration Max . | . . . . Secondary Targets 6 | . 3 3 . Max Gunslinging Chain 1 | . 1 1 . Shots Hit Robots 529 | 12 259 257 1 Core Hits 221 | 6 100 114 1 Critical Kills . | . . . . Critical Parts Destroyed . | . . . . Critical Strikes 25 | . . 25 . Burn 25 | . . 25 . Melee Attacks . | . . . . Impact . | . . . . Slashing . | . . . . Piercing . | . . . . Sneak Attacks . | . . . . Combat Hostiles . | . . . . Follow-up Attacks . | . . . . Damage Inflicted 7482 | 102 2532 4828 20 Guns 7477 | 102 2527 4828 20 Cannons . | . . . . Explosions . | . . . . Melee . | . . . . Ramming 2 | . 2 . . Kinetic 1411 | 102 1189 120 . Thermal 6069 | . 1341 4708 20 Explosive . | . . . . Electromagnetic . | . . . . Impact . | . . . . Slashing . | . . . . Piercing . | . . . . Highest Corruption 2 | . 1 2 . Average Corruption 1 | . 1 1 . Corruption Purged . | . . . . Corruption Blocked . | . . . . Effects 31 | . 8 23 . Message Errors 7 | . 3 4 . Matter Fused 17 | . 5 12 . Energy Discharges 2 | . . 2 . Parts Fused 1 | . . 1 . Data Loss (minor) 2 | . . 2 . Data Loss (major) 2 | . . 2 . Overload Shots . | . . . . Overflow Damage . | . . . . Projectiles . | . . . . Explosions . | . . . . Melee . | . . . . Knockbacks . | . . . . Impact . | . . . . Kinetic . | . . . . Secondary . | . . . . Self-Inflicted Damage . | . . . . Shots . | . . . . Rammed . | . . . . Targets Rammed 1 | . 1 . . Kicked 1 | . 1 . . Crushed . | . . . . Highest Temperature 312 | . 26 312 . Average Temperature 32 | . 8 37 . Received Heat Transfer 636 | . 228 408 . Siege Activations . | . . . . Robots Corrupted . | . . . . Combat Hostiles . | . . . . Parts Fried . | . . . . Impact Corruptions . | . . . . Robots Melted . | . . . . Combat Hostiles . | . . . . Parts Melted 17 | . . 17 . Heat Transferred 13644 | . 3075 10532 37 Parts Sabotaged . | . . . . Parts Stolen . | . . . . Parts Stripped . | . . . . Power Chain Reactions . | . . . . Missiles Intercepted . | . . . . Alert | -11 -10 -9 -8 ------- Run | Jun Mat Mat Mat Peak Influence 1338 | 15 318 1338 564 Initial 519 | . 9 42 519 Average 434 | 5 92 727 525 Maximum Alert Level 4 | . 1 4 2 Low Security (%) 55 | 100 93 24 . Level 1 10 | . 6 14 . Level 2 6 | . . 11 100 Level 3 4 | . . 9 . Level 4 21 | . . 41 . Level 5 . | . . . . High Security . | . . . . Max Security . | . . . . Sterilizations 1 | . . 1 . Squads Dispatched 14 | . 3 11 . Investigation 8 | . 2 6 . Extermination . | . . . . Reinforcement 3 | . 1 2 . Assault 3 | . . 3 . Garrison . | . . . . Intercept . | . . . . Searches Triggered . | . . . . Construction Impeded . | . . . . Haulers Reinforced . | . . . . Active Scanning Responses . | . . . . Cargo Convoy Interrupts . | . . . . Stealth | -11 -10 -9 -8 --------- Run | Jun Mat Mat Mat Distress Signals 8 | . 2 6 . Communications Jammed . | . . . . Distress Signals . | . . . . Times Spotted 102 | . 29 72 1 Peak Tracking Total 6 | . 5 6 . Tactical Retreats 3 | . . 3 . Traps | -11 -10 -9 -8 ------- Run | Jun Mat Mat Mat Traps Triggered 6 | . 4 2 . Indirectly . | . . . . Trap Hack Attempts . | . . . . Triggered . | . . . . Disarmed . | . . . . Reprogrammed . | . . . . Reused . | . . . . Traps Extracted . | . . . . Installed . | . . . . Triggered . | . . . . Machines | -11 -10 -9 -8 ---------- Run | Jun Mat Mat Mat Machines Disabled 6 | . 2 4 . Max in Single Turn 1 | . 1 1 . Machines Repaired . | . . . . Machines Sabotaged . | . . . . Overloaded Fab Kills . | . . . . Hacking | -11 -10 -9 -8 --------- Run | Jun Mat Mat Mat Machines Accessed 20 | . 8 12 . Terminals 16 | . 6 10 . Fabricators . | . . . . Repair Stations . | . . . . Recycling Units 3 | . 2 1 . Scanalyzers 1 | . . 1 . Garrison Access . | . . . . Total Hacks 74 | . 30 44 . Successful 38 | . 13 25 . Failed 36 | . 17 19 . Catastrophic 7 | . 5 2 . Database Lockouts . | . . . . Manual 10 | . 7 3 . Terminals 58 | . 23 35 . Fabricators . | . . . . Repair Stations . | . . . . Recycling Units 11 | . 7 4 . Scanalyzers 5 | . . 5 . Garrison Access . | . . . . Terminal Hacks 26 | . 9 17 . Record 4 | . . 4 . Prototype ID Bank 5 | . 3 2 . Level Access Points 1 | . . 1 . Emergency Access Points 2 | . . 2 . Terminal Index 2 | . 1 1 . Alert Level 2 | . 2 . . Unreport Threat 1 | . 1 . . Locate Traps 4 | . 2 2 . Dispatch Records 1 | . . 1 . Investigation Status 1 | . . 1 . Hauler Manifests 1 | . . 1 . Registered Components 1 | . . 1 . Zone Layout 1 | . . 1 . Fabricator Hacks . | . . . . Repair Station Hacks . | . . . . Recycling Unit Hacks 7 | . 4 3 . Retrieve Matter 1 | . 1 . . Retrieve Components 6 | . 3 3 . Scanalyzer 5 | . . 5 . Insert Component 2 | . . 2 . Analyze 3 | . . 3 . Garrison Access Hacks . | . . . . Unauthorized Hacks . | . . . . Terminals . | . . . . Fabricators . | . . . . Repair Stations . | . . . . Recycling Units . | . . . . Scanalyzers . | . . . . Garrison Access . | . . . . Data Cores Recovered 1 | . . 1 . Used . | . . . . Hacking Detections 18 | . 8 10 . Full Trace Events 13 | . 6 7 . Feedback Events 1 | . 1 . . Corruption 1 | . 1 . . Feedback Blocked . | . . . . Robot Schematics Acquired . | . . . . Robots Built . | . . . . Authchips . | . . . . Time . | . . . . Total Robot Build Rating . | . . . . Part Schematics Acquired 2 | . . 2 . Parts Built . | . . . . Authchips . | . . . . Time . | . . . . Total Part Build Rating . | . . . . Parts Repaired . | . . . . Time . | . . . . Parts Recycled . | . . . . Recycled Matter . | . . . . Retrieved Matter . | . . . . Retrieved Components 14 | . 12 2 . Parts Scanalyzed 2 | . . 2 . Part Schematics Acquired 2 | . . 2 . Parts Damaged . | . . . . Bothacking | -11 -10 -9 -8 ------------ Run | Jun Mat Mat Mat Used RIF Installer . | . . . . Robots Hacked . | . . . . Non-combat . | . . . . Combat . | . . . . Robot Hacks Applied . | . . . . Relay Couplers Released . | . . . . Fabnet Peak Effective % . | . . . . Robots Rewired . | . . . . Allies Hacked . | . . . . Hacks Repelled . | . . . . Allies | -11 -10 -9 -8 -------- Run | Jun Mat Mat Mat Total Allies . | . . . . Largest Group . | . . . . Highest-Rated Group . | . . . . Highest-Rated Ally . | . . . . Total Orders . | . . . . Ally Attacks . | . . . . Total Damage . | . . . . Kills . | . . . . Allies Corrupted . | . . . . Allies Melted . | . . . . Intel | -11 -10 -9 -8 ------- Run | Jun Mat Mat Mat Robot Analysis Total . | . . . . Derelict Logs Recovered . | . . . . Drone Launches . | . . . . Drone Recoveries . | . . . . Exploration | -11 -10 -9 -8 ------------- Run | Jun Mat Mat Mat Turns Passed 6494 | 62 2916 3481 35 Spaces Moved 3523 | 32 1301 2129 61 Core 16 | 9 7 . . Treads . | . . . . Legs 1748 | 23 1294 431 . Wheels . | . . . . Hover . | . . . . Flight 1759 | . . 1698 61 Fastest Speed 34 | 50 50 34 34 Average Speed 93 | 100 119 79 34 Slowest Speed 390 | 120 150 390 34 Overloaded Moves . | . . . . Propulsion Burnouts . | . . . . Robots Hopped 1 | . . 1 . Cave-ins Triggered . | . . . . Exploration Rate (%) 51 | 4 99 97 6 Regions Visited 3 Branch Regions . Pre-discovered Areas . | . . . . Known Exits Taken 1 | . . 1 . Unknown Exits Taken 2 | 1 1 . . Scrap Searched . | . . . . Spaces Dug . | . . . . Terrain Destroyed 31 | . 31 . . Melee . | . . . . Projectile . | . . . . AOE 31 | . 31 . . Terrain Rammed . | . . . . Walls Destroyed . | . . . . Machines Disabled . | . . . . Actions | -11 -10 -9 -8 --------- Run | Jun Mat Mat Mat Total 5990 | 45 2319 3554 72 Wait 1886 | . 753 1132 1 Move 3518 | 31 1300 2126 61 Hop 1 | . . 1 . Pick Up 26 | . 6 18 2 Fast Attach 23 | 5 14 4 . Attach 13 | . 1 12 . Detach 4 | . . 4 . Swap 17 | . 6 7 4 Drop 34 | . 10 21 3 Fire 408 | 9 213 185 1 Melee . | . . . . Ram . | . . . . Kick 1 | . 1 . . Crush . | . . . . Escape Stasis . | . . . . Rewire . | . . . . Trap . | . . . . Miscellaneous 59 | . 15 44 . Route ------- -11/Junkyard -10/Materials (discovered 4 exits: *Mat x3 / [*Min]) -9/Materials (discovered 5 exits: *Mat x3 / *Min x2) -8/Materials History --------- Turn | Location | Event 1 | -11/Junkyard | Upgraded with Power slot (x1) 1 | -11/Junkyard | Upgraded with Propulsion slot (x1) 1 | -11/Junkyard | Upgraded with Utility slot (x1) 1 | -11/Junkyard | Upgraded with Weapon slot (x1) 5 | -11/Junkyard | Discovered new exit (range 15) 63 | -11/Junkyard | Entered Materials 266 | -10/Materials | Core integrity fell below 50% 312 | -10/Materials | Build established: Mutant 338 | -10/Materials | Destroyed 8 combat bots 353 | -10/Materials | Discovered new exit (range 16) 410 | -10/Materials | Discovered new exit (range 15) 445 | -10/Materials | Discovered new exit (range 15) 645 | -10/Materials | Build established: Scavenger-Mutant 705 | -10/Materials | Discovered new exit (range 16) 867 | -10/Materials | Reached level 2 2979 | -10/Materials | Entered another Materials area 2981 | -9/Materials | Reached level 3 2982 | -9/Materials | Upgraded with Utility slot (x1) 3006 | -9/Materials | Core integrity fell below 50% 3076 | -9/Materials | Discovered new exit (range 15) 3539 | -9/Materials | Build established: Mutant 3549 | -9/Materials | Reached level 4 3552 | -9/Materials | Upgraded with Utility slot (x1) 3616 | -9/Materials | Discovered new exit (range 10) 4223 | -9/Materials | Reached level 5 4226 | -9/Materials | Upgraded with Propulsion slot (x1) 4368 | -9/Materials | Build established: Skirmisher 4421 | -9/Materials | Discovered new exit (range 10) 4579 | -9/Materials | First assault squad dispatched 4654 | -9/Materials | Reached level 6 4688 | -9/Materials | Identified exit to Materials 4794 | -9/Materials | Destroyed 7 combat bots 4880 | -9/Materials | Reached level 7 4965 | -9/Materials | Upgraded with Utility slot (x1) 5057 | -9/Materials | Reached level 8 5081 | -9/Materials | Destroyed 7 combat bots 5100 | -9/Materials | Sterilization system engaged 5100 | -9/Materials | Non-combat units ordered to evacuate 5157 | -9/Materials | Destroyed 7 combat bots 5200 | -9/Materials | Combat units ordered to evacuate 5350 | -9/Materials | Build established: Hacker-Scout 5400 | -9/Materials | Ambient heat levels rising (+10) 5401 | -9/Materials | Identified exit to Mines 5550 | -9/Materials | Ambient heat levels rising (+10) 5700 | -9/Materials | Ambient heat levels rising (+10) 5850 | -9/Materials | Ambient heat levels rising (+10) 6000 | -9/Materials | Ambient heat levels rising (+10) 6062 | -9/Materials | Build established: Scavenger-Mutant 6150 | -9/Materials | Ambient heat levels rising (+10) 6300 | -9/Materials | Ambient heat levels rising (+10) 6450 | -9/Materials | Ambient heat levels rising (+10) 6460 | -9/Materials | Entered another Materials area 6462 | -8/Materials | Reached level 9 6495 | -8/Materials | Self-destructed Last Messages --------------- 06069_ J0E:U/=Y%NFVQKBR8W 06390_ JZKP/&8NTI2GRGCJ|/IC= TITL6UEHK4ZOXFP 06441_ System corrupted: Matter fused (-10). 06450_ ALERT: Ambient heat levels +10. 06460_ Acquired 28 matter. LOCATION=MATERIALS GOAL=ESCAPE 06462_ Reached level 9. 06463_ Dropped Heat Sink. 06471_ Acquired Adv. Weight Redist. System. 06490_ Y-45 Defender destroyed. 06493_ Acquired 40 matter. 06494_ Dropped Adv. Weight Redist. System. Map ----- +----------------------------------------------------+ | | | | | | | | | | | | | | | | | | | | | | | | | | | | | | | | | | | | | | | | | | | | | ??????????????????????????############???????????? | | ?????????????????????????# """ #???????????? | | ????????????????????????##!"R" #???????????? | | ????????????????????????#@!" " #???????????? | | ????????????????????????##%= """ ######??????? | | ?????????????????????????#%= """ ## ######## | | ?????????????????????????# ! """ ## !!#! | | ???????????????????###???#! ## # | | ???????????????????# ###+########## # | | ???????????????????# "" # | | ???????????????????# T + | | ???????????????????# # """ "" | | ?????????x????? ############## # """ "" | | ????????x??????###### #?????######### # """ "" | | ????????????????????# ??????# # ######## | | ????????????????????# ???????# + #??????? | | ????????????????????# ????????# ! # #??????? | | ????????????????????#?????????######### #??????? | | ?????????????????????????????????????## ##?????? | | ?????????????????????????????????????# #?????? | | ???????????????????????????########### = #?????? | | ????????????????????# #?????? | | ????????????????????# ####### [ #?????? | | ?????????????????????????????????????# #?????? | | ?????????????????????????????????????#######?????? | | ?????????????????????????????????????????????????? | | ?????????????????????????????????????????????????? | | ?????????????????????????????????????????????????? | +----------------------------------------------------+ Best States ------------- Heat Dissipation 87 Energy Generation 23 Energy Capacity 450 Matter Stores 300 Matter Capacity 300 Sight Range 18 Robot Scan Range 20 Terrain Scan Density 10 Additional Mass Support 9 Armor Coverage 300 Evasion (%) 63 Offensive Hacking 15 Defensive Hacking 5 Item Schematics ----------------- Lgt. Armor Plating | -9/Materials | Scanalyzed Imp. Flight Unit | -9/Materials | Scanalyzed Robot Schematics ------------------ None Fabricated ------------ Nothing Alien Tech Used ----------------- None Achievements -------------- None Challenges ------------ None RPGLIKE | -11 -10 -9 -8 --------- Run | Jun Mat Mat Mat Levels Raised 8 | . 1 6 1 XP Earned 15756 | 3000 2175 8926 1655 XP Spent 13470 | 2900 1600 8970 . Upgrades 36 | 6 4 26 . Power Slot 1 | 1 . . . Propulsion Slot 2 | 1 . 1 . Utility Slot 4 | 1 . 3 . Weapon Slot 1 | 1 . . . Core Integrity 7 | . . 7 . Heat Dissipation 3 | . 1 2 . Mass Support 3 | . . 3 . Inventory Capacity 2 | . 1 1 . Sight Range 2 | . . 2 . Sensor Range 3 | . . 3 . Ranged Accuracy 4 | 2 2 . . Hack Attack % 3 | . . 3 . Hack Defense % 1 | . . 1 . Protomatter Created 1181 | . 329 852 . Integrity Restored 1257 | . 327 930 . Core 1119 | . 327 792 . Parts 138 | . . 138 . Protomatter Decayed 784 | . 249 535 . Game ------ Seed MetafiberAssembledSaw Manual? 0 Play Time 01:21:17 Cumulative 49.4 hours Start 2023.09.11 @ 23:06:36 End 2023.11.19 @ 15:55:55 Sessions 5 Manual Loads 0 Difficulty Rogue Special Mode Winter2019/RPGLIKE Game No. 21 Rogue 21 Adventurer 0 Explorer 0 Win Type - Total 1 Types 0/0/0/1/0/0/0/0/0 Lore% 31 Gallery% 33 Achievement% 37 Wizard Run 0 Options --------- ASCII 0 Keyboard 0 Movement Mouse Keybinds 0 Fullscreen 2 Font 18/X11Bold Map View 76x50 Tactical HUD 1 Map Filters NONE Filters NONE Steam 1 RUN: 5756105c-8e2c-41ad-ab21-c3daca24a01e